fUSD/lending_fUSD_20240105
["ID","MTS","AMOUNT","RATE_DAILY","PERIOD"]
[310290456,1704463883751,-500.0,0.00030684,2]
[310290457,1704463883761,-522.24089444,0.00030684,2]
[310290458,1704463883770,-4907.15,0.00030684,2]
[310290459,1704463883784,-500.0,0.00030684,2]
[310290460,1704463883794,-4324.26,0.00030684,2]
[310290461,1704463883804,-534.45207891,0.00030684,2]
[310290462,1704463883814,-500.0,0.00030684,2]
[310290463,1704463883824,-746.12,0.00030684,2]
[310290464,1704463883834,-11882.1,0.00030684,2]
[310290465,1704463883844,-845.63,0.00030684,2]
[310290466,1704463883854,-500.0,0.00030684,2]
[310290467,1704463883864,-500.0,0.00030684,2]
[310290468,1704463883874,-500.0,0.00030684,2]
[310290469,1704463883884,-500.0,0.00030684,2]
[310290470,1704463883894,-500.0,0.00030684,2]
[310290471,1704463883904,-500.0,0.00030684,2]
[310290472,1704463883913,-3292.08,0.00030684,2]
[310290473,1704463883923,-500.0,0.00030684,2]
[310290474,1704463883934,-500.0,0.00030684,2]
[310290475,1704463883943,-500.0,0.00030684,2]
[310290476,1704463883954,-918.77,0.00030684,2]
[310290477,1704463883964,-500.0,0.00030684,2]
[310290478,1704463883974,-644.83,0.00030684,2]
[310290479,1704463883985,-3344.35,0.00030684,2]
[310290480,1704463883996,-1395.08,0.00030684,2]
[310290481,1704463884006,-500.0,0.00030684,2]
[310290482,1704463884016,-500.0,0.00030684,2]
[310290483,1704463884025,-500.0,0.00030684,2]
[310290484,1704463884037,-500.0,0.00030684,2]
[310290485,1704463884048,-500.0,0.00030684,2]
[310290486,1704463884058,-613.87,0.00030684,2]
[310290487,1704463884067,-500.0,0.00030684,2]
[310290488,1704463884077,-500.0,0.00030684,2]
[310290489,1704463884087,-1259.17,0.00030684,2]
[310290490,1704463884098,-500.0,0.00030684,2]
[310290491,1704463884108,-545.84477316,0.00030684,2]
[310290492,1704463884119,-2954.54,0.00030684,2]
[310290493,1704463884130,-584.78974357,0.00030684,2]
[310290494,1704463884140,-603.06626938,0.00030684,2]
[310290495,1704463884151,-500.0,0.00030684,2]
[310290496,1704463884161,-500.0,0.00030684,2]
[310290497,1704463884170,-737.12,0.00030684,2]
[310290498,1704463884181,-546.12216249,0.00030684,2]
[310290499,1704463884191,-2366.41,0.00030684,2]
[310290500,1704463884201,-500.0,0.00030684,2]
[310290501,1704463884213,-500.0,0.00030684,2]
[310290502,1704463884223,-500.0,0.00030684,2]
[310290503,1704463884234,-500.0,0.00030684,2]
[310290504,1704463884243,-5440.99,0.00030684,2]
[310290505,1704463884469,-500.0,0.00030684,2]
[310290506,1704463884480,-1558.45,0.00030684,2]
[310290507,1704463884490,-3361.08,0.00030684,2]
[310290508,1704463884501,-500.0,0.00030684,2]
[310290509,1704463884511,-500.0,0.00030684,2]
[310290510,1704463884521,-500.0,0.00030684,2]
[310290511,1704463884534,-500.0,0.00030684,2]
[310290512,1704463884545,-1062.83,0.00030684,2]
[310290513,1704463884555,-500.0,0.00030684,2]
[310290514,1704463884564,-500.0,0.00030684,2]
[310290515,1704463884574,-500.0,0.00030684,2]
[310290516,1704463884584,-812.59,0.00030684,2]
[310290517,1704463884595,-646.75,0.00030684,2]
[310290518,1704463884605,-500.0,0.00030684,2]
[310290519,1704463884618,-1323.29,0.00030684,2]
[310290520,1704463884628,-284.94972674,0.00030684,2]
[310290521,1704463884638,-526.08450772,0.00030684,2]
[310290522,1704463884647,-500.0,0.00030684,2]
[310290523,1704463884658,-500.0,0.00030684,2]
[310290524,1704463884669,-16516.01,0.00030684,2]
[310290525,1704463884679,-747.13,0.00030684,2]
[310290526,1704463884689,-8220.31,0.00030684,2]
[310290527,1704463884703,-500.0,0.00030684,2]
[310290528,1704463884713,-168.63684847,0.00030684,2]
[310290529,1704463884723,-343.78937351,0.00030684,2]
[310290530,1704463884732,-500.0,0.00030684,2]
[310290531,1704463884742,-500.0,0.00030684,2]
[310290532,1704463884752,-500.0,0.00030684,2]
[310290533,1704463884762,-1218.24,0.00030684,2]
[310290534,1704463884771,-500.0,0.00030684,2]
[310290535,1704463884784,-678.9,0.00030684,2]
[310290536,1704463884794,-500.0,0.00030684,2]
[310290537,1704463884805,-509.33,0.00030684,2]
[310290538,1704463884815,-1093.85,0.00030684,2]
[310290539,1704463884824,-470.40742827,0.00030684,2]
[310290540,1704463884834,-500.0,0.00030684,2]
[310290541,1704463884844,-500.0,0.00030684,2]
[310290542,1704463884854,-500.0,0.00030684,2]
[310290543,1704463884863,-625.64,0.00030684,2]
[310290544,1704463884873,-518.8378429,0.00030684,2]
[310290545,1704463884883,-500.0,0.00030684,2]
[310290546,1704463884893,-500.0,0.00030684,2]
[310290547,1704463884902,-528.93,0.00030684,2]
[310290548,1704463884912,-500.0,0.00030684,2]
[310290549,1704463884922,-1229.71,0.00030684,2]
[310290550,1704463884931,-500.0,0.00030684,2]
[310290551,1704463884941,-500.0,0.00030684,2]
[310290552,1704463884950,-696.27,0.00030684,2]
[310290553,1704463884960,-500.0,0.00030684,2]
[310290554,1704463884970,-500.0,0.00030684,2]
[310290555,1704463884980,-906.38,0.00030684,2]
[310290556,1704463884990,-500.0,0.00030684,2]
[310290557,1704463884999,-1228.93,0.00030684,2]
[310290558,1704463885010,-500.0,0.00030684,2]
[310290559,1704463885019,-500.0,0.00030684,2]
[310290560,1704463885029,-500.0,0.00030684,2]
[310290561,1704463885040,-1559.68,0.00030684,2]
[310290562,1704463885050,-500.0,0.00030684,2]
[310290563,1704463885059,-1479.47,0.00030684,2]
[310290564,1704463885070,-1060.36,0.00030684,2]
[310290565,1704463885079,-500.0,0.00030684,2]
[310290566,1704463885089,-409.44158391,0.00030684,2]
[310290567,1704463885099,-538.44630339,0.00030684,2]
[310290568,1704463885109,-500.0,0.00030684,2]
[310290569,1704463885118,-583.34048829,0.00030684,2]
[310290570,1704463885129,-500.0,0.00030684,2]
[310290571,1704463885140,-500.0,0.00030684,2]
[310290572,1704463885150,-535.98,0.00030684,2]
[310290573,1704463885159,-1024.05,0.00030684,2]
[310290574,1704463885181,-20552.87,0.00030684,2]
[310290575,1704463885192,-732.24,0.00030684,2]
[310290576,1704463885202,-500.0,0.00030684,2]
[310290577,1704463885213,-500.0,0.00030684,2]
[310290578,1704463885223,-171.54953677,0.00030684,2]
[310290579,1704463885233,-500.0,0.00030684,2]
[310290580,1704463885243,-764.89,0.00030684,2]
[310290581,1704463885253,-545.54232042,0.00030684,2]
[310290582,1704463885263,-500.0,0.00030684,2]
[310290583,1704463885272,-1384.47,0.00030684,2]
[310290584,1704463885284,-500.0,0.00030684,2]
[310290585,1704463885294,-2343.7,0.00030684,2]
[310290586,1704463885304,-500.0,0.00030684,2]
[310290587,1704463885313,-855.82,0.00030684,2]
[310290588,1704463885323,-1443.03,0.00030684,2]
[310290589,1704463885333,-500.0,0.00030684,2]
[310290590,1704463885342,-500.0,0.00030684,2]
[310290591,1704463885353,-1467.75,0.00030684,2]
[310290592,1704463885363,-500.0,0.00030684,2]
[310290593,1704463885373,-500.0,0.00030684,2]
[310290594,1704463885382,-2427.76,0.00030684,2]
[310290595,1704463885392,-500.0,0.00030684,2]
[310290596,1704463885402,-547.40654993,0.00030684,2]
[310290597,1704463885412,-500.0,0.00030684,2]
[310290598,1704463885421,-500.0,0.00030684,2]
[310290599,1704463885431,-500.0,0.00030684,2]
[310290600,1704463885441,-500.0,0.00030684,2]
[310290601,1704463885452,-500.0,0.00030684,2]
[310290602,1704463885462,-1262.81,0.00030684,2]
[310290603,1704463885472,-500.0,0.00030684,2]
[310290604,1704463885482,-976.69,0.00030684,2]
[310290605,1704463885492,-500.0,0.00030684,2]
[310290606,1704463885502,-502.15,0.00030684,2]
[310290607,1704463885512,-500.0,0.00030684,2]
[310290608,1704463885522,-1404.49,0.00030684,2]
[310290609,1704463885533,-500.0,0.00030684,2]
[310290610,1704463885543,-963.68,0.00030684,2]
[310290611,1704463885553,-507.79865324,0.00030684,2]
[310290612,1704463885563,-500.0,0.00030684,2]
[310290613,1704463885572,-1710.42,0.00030684,2]
[310290614,1704463885582,-1043.98,0.00030684,2]
[310290615,1704463885592,-500.0,0.00030684,2]
[310290616,1704463885602,-500.0,0.00030684,2]
[310290617,1704463885612,-827.77,0.00030684,2]
[310290618,1704463885622,-500.0,0.00030684,2]
[310290619,1704463885632,-670.86,0.00030684,2]
[310290620,1704463885641,-500.0,0.00030684,2]
[310290621,1704463885651,-552.27,0.00030684,2]
[310290622,1704463885661,-500.0,0.00030684,2]
[310290623,1704463885671,-2031.67,0.00030684,2]
[310290624,1704463885681,-500.0,0.00030684,2]
[310290625,1704463885691,-500.0,0.00030684,2]
[310290626,1704463885700,-500.0,0.00030684,2]
[310290627,1704463885711,-737.13,0.00030684,2]
[310290628,1704463885721,-593.61,0.00030684,2]
[310290629,1704463885730,-7439.39,0.00030684,2]
[310290630,1704463885740,-973.07,0.00030684,2]
[310290631,1704463885750,-500.0,0.00030684,2]
[310290632,1704463885761,-563.27,0.00030684,2]
[310290633,1704463885772,-500.0,0.00030684,2]
[310290634,1704463885785,-585.98,0.00030684,2]
[310290635,1704463885799,-500.0,0.00030684,2]
[310290636,1704463885808,-878.72,0.00030684,2]
[310290637,1704463885820,-500.0,0.00030684,2]
[310290638,1704463885832,-500.0,0.00030684,2]
[310290639,1704463885842,-1022.6,0.00030684,2]
[310290640,1704463885854,-500.0,0.00030684,2]
[310290641,1704463885864,-500.0,0.00030684,2]
[310290642,1704463885874,-1959.09,0.00030684,2]
[310290643,1704463885884,-481.5959444,0.00030684,2]
[310290644,1704463885894,-732.57,0.00030684,2]
[310290645,1704463885904,-11053.17,0.00030684,2]
[310290646,1704463885913,-500.0,0.00030684,2]
[310290647,1704463885922,-500.0,0.00030684,2]
[310290648,1704463885932,-757.66,0.00030684,2]
[310290649,1704463885941,-500.0,0.00030684,2]
[310290650,1704463885951,-500.0,0.00030684,2]
[310290651,1704463885960,-500.0,0.00030684,2]
[310290652,1704463885969,-511.54,0.00030684,2]
[310290653,1704463885979,-1241.64,0.00030684,2]
[310290654,1704463885988,-3419.36,0.00030684,2]
[310290655,1704463885998,-500.0,0.00030684,2]
[310290656,1704463886008,-1092.45,0.00030684,2]
[310290657,1704463886017,-2084.07,0.00030684,2]
[310290658,1704463886028,-558.28,0.00030684,2]
[310290659,1704463886037,-526.55297453,0.00030684,2]
[310290660,1704463886047,-500.0,0.00030684,2]
[310290661,1704463886056,-500.0,0.00030684,2]
[310290662,1704463886065,-528.18166799,0.00030684,2]
[310290663,1704463886075,-500.0,0.00030684,2]
[310290664,1704463886084,-1946.6,0.00030684,2]
[310290665,1704463886094,-500.0,0.00030684,2]
[310290666,1704463886103,-1013.42,0.00030684,2]
[310290667,1704463886113,-500.0,0.00030684,2]
[310290668,1704463886123,-500.0,0.00030684,2]
[310290669,1704463886132,-500.0,0.00030684,2]
[310290670,1704463886142,-521.99845028,0.00030684,2]
[310290671,1704463886151,-500.0,0.00030684,2]
[310290672,1704463886162,-1212.22,0.00030684,2]
[310290673,1704463886172,-500.0,0.00030684,2]
[310290674,1704463886181,-702.4,0.00030684,2]
[310290675,1704463886191,-500.0,0.00030684,2]
[310290676,1704463886201,-2361.2,0.00030684,2]
[310290677,1704463886211,-500.0,0.00030684,2]
[310290678,1704463886221,-1128.19,0.00030684,2]
[310290679,1704463886230,-500.0,0.00030684,2]
[310290680,1704463886240,-500.0,0.00030684,2]
[310290681,1704463886250,-764.39,0.00030684,2]
[310290682,1704463886261,-500.0,0.00030684,2]
[310290683,1704463886270,-500.0,0.00030684,2]
[310290684,1704463886282,-517.07,0.00030684,2]
[310290685,1704463886292,-500.0,0.00030684,2]
[310290686,1704463886302,-1542.41,0.00030684,2]
[310290687,1704463886311,-1440.35,0.00030684,2]
[310290688,1704463886321,-500.0,0.00030684,2]
[310290689,1704463886331,-500.0,0.00030684,2]
[310290690,1704463886342,-500.0,0.00030684,2]
[310290691,1704463886351,-715.0,0.00030684,2]
[310290692,1704463886362,-500.0,0.00030684,2]
[310290693,1704463886371,-500.0,0.00030684,2]
[310290694,1704463886382,-500.0,0.00030684,2]
[310290695,1704463886393,-2358.36,0.00030684,2]
[310290696,1704463886403,-508.33384541,0.00030684,2]
[310290697,1704463886412,-500.0,0.00030684,2]
[310290698,1704463886424,-1017.07,0.00030684,2]
[310290699,1704463886433,-5040.24,0.00030684,2]
[310290700,1704463886443,-500.0,0.00030684,2]
[310290701,1704463886453,-1054.48,0.00030684,2]
[310290702,1704463886464,-500.0,0.00030684,2]
[310290703,1704463886475,-500.0,0.00030684,2]
[310290704,1704463886485,-500.0,0.00030684,2]
[310290705,1704463886495,-500.0,0.00030684,2]
[310290706,1704463886505,-500.0,0.00030684,2]
[310290707,1704463886515,-915.19,0.00030684,2]
[310290708,1704463886525,-8316.18,0.00030684,2]
[310290709,1704463886536,-500.0,0.00030684,2]
[310290710,1704463886545,-500.0,0.00030684,2]
[310290711,1704463886555,-1182.97,0.00030684,2]
[310290712,1704463886564,-5436.81,0.00030684,2]
[310290713,1704463886575,-500.0,0.00030684,2]
[310290714,1704463886585,-500.0,0.00030684,2]
[310290715,1704463886594,-500.0,0.00030684,2]
[310290716,1704463886605,-826.79,0.00030684,2]
[310290717,1704463886619,-510.94980916,0.00030684,2]
[310290718,1704463886629,-500.0,0.00030684,2]
[310290719,1704463886638,-709.6,0.00030684,2]
[310290720,1704463886656,-500.0,0.00030684,2]
[310290721,1704463886678,-500.0,0.00030684,2]
[310290722,1704463886698,-526.58,0.00030684,2]
[310290723,1704463886713,-574.8,0.00030684,2]
[310290724,1704463886729,-856.02,0.00030684,2]
[310290725,1704463886746,-2833.48,0.00030684,2]
[310290726,1704463886764,-557.01,0.00030684,2]
[310290727,1704463886783,-701.77,0.00030684,2]
[310290728,1704463886797,-500.0,0.00030684,2]
[310290729,1704463886811,-151.0,0.00030684,7]
[310290730,1704463886828,-151.0,0.00030684,7]
[310290731,1704463886842,-151.0,0.00030684,7]
[310290732,1704463886858,-161.3155,0.00030684,7]
[310290733,1704463886871,-161.3155,0.00030684,7]
[310290734,1704463886883,-163.4,0.00030684,7]
[310290735,1704463886900,-163.4,0.00030684,7]
[310290736,1704463886916,-151.0,0.00030684,7]
[310290737,1704463886931,-151.0,0.00030684,7]
[310290738,1704463886946,-151.0,0.00030684,7]
[310290739,1704463886962,-151.0,0.00030684,7]
[310290740,1704463886977,-151.0,0.00030684,7]
[310290741,1704463886993,-151.0,0.00030684,7]
[310290742,1704463887008,-151.0,0.00030684,7]
[310290743,1704463887019,-282.405435,0.00030684,7]
[310290744,1704463887033,-151.0,0.00030684,7]
[310290745,1704463887047,-151.0,0.00030684,7]
[310290746,1704463887060,-10000.0,0.00030684,7]
[310290747,1704463887076,-10000.0,0.00030684,7]
[310290748,1704463887090,-10000.0,0.00030684,7]
[310290749,1704463887102,-10000.0,0.00030684,7]
[310290750,1704463887119,-10000.0,0.00030684,7]
[310290751,1704463887132,-10000.0,0.00030684,7]
[310290752,1704463887145,-4473.142131,0.00030684,7]
[310290753,1704463887159,-4473.142131,0.00030684,7]
[310290754,1704463887175,-4473.142131,0.00030684,7]
[310290755,1704463887191,-4473.142131,0.00030684,7]
[310290756,1704463887206,-185.208853,0.00030684,7]
[310290757,1704463887222,-185.208853,0.00030684,7]
[310290758,1704463887236,-185.208853,0.00030684,7]
[310290759,1704463887249,-185.208853,0.00030684,7]
[310290760,1704463887263,-759.511757,0.00030684,7]
[310290761,1704463887276,-759.511757,0.00030684,7]
[310290762,1704463887297,-759.511757,0.00030684,7]
[310290763,1704463887310,-759.511757,0.00030684,7]
[310290764,1704463887323,-670.734672,0.00030684,7]
[310290765,1704463887335,-670.734672,0.00030684,7]
[310290766,1704463887348,-670.734672,0.00030684,7]
[310290767,1704463887361,-670.734672,0.00030684,7]
[310290768,1704463887374,-151.0,0.00030684,7]
[310290769,1704463887388,-151.0,0.00030684,7]
[310290770,1704463887402,-151.0,0.00030684,7]
[310290771,1704463887415,-151.0,0.00030684,7]
[310290772,1704463887428,-236.259597,0.00030684,7]
[310290773,1704463887441,-236.259597,0.00030684,7]
[310290774,1704463887455,-236.259597,0.00030684,7]
[310290775,1704463887469,-236.259597,0.00030684,7]
[310290776,1704463887482,-719.83383,0.00030684,7]
[310290777,1704463887496,-719.83383,0.00030684,7]
[310290778,1704463887508,-719.83383,0.00030684,7]
[310290779,1704463887520,-719.83383,0.00030684,7]
[310290780,1704463887540,-351.608158,0.00030684,7]
[310290781,1704463887553,-351.608158,0.00030684,7]
[310290782,1704463887566,-351.608158,0.00030684,7]
[310290783,1704463887579,-351.608158,0.00030684,7]
[310290784,1704463887593,-441.69152,0.00030684,7]
[310290785,1704463887607,-441.69152,0.00030684,7]
[310290786,1704463887620,-441.69152,0.00030684,7]
[310290787,1704463887633,-441.69152,0.00030684,7]
[310290788,1704463887646,-50000.0,0.00030838,7]
[310290789,1704463887659,-689.29232079,0.00030874,2]
[310290790,1704463887672,-2684.29646221,0.00030874,4]
[310290791,1704463887684,-1424.62607917,0.00030874,2]
[310290792,1704463887697,-325.71102052,0.00030874,4]
[310290793,1704463887709,-2892.60523596,0.00030874,4]
[310290794,1704463887721,-385.02931366,0.00030874,4]
[310290795,1704463887732,-825.76813641,0.00030874,4]
[310290796,1704463887744,-1046.51724463,0.00030874,4]
[310290797,1704463887756,-175.37272974,0.00030874,4]
[310290798,1704463887769,-155.0,0.00030874,2]
[310290799,1704463887781,-2141.5294569,0.00030874,4]
[310290800,1704463887793,-531.23153517,0.00030874,4]
[310290801,1704463887805,-299.08047786,0.00030874,2]
[310290802,1704463887817,-161.3155,0.00030874,7]
[310290803,1704463887829,-161.3155,0.00030874,7]
[310290804,1704463887840,-163.4,0.00030874,7]
[310290805,1704463887852,-163.4,0.00030874,7]
[310290806,1704463887865,-155.63615164,0.00030875,4]
[310290807,1704463887877,-576.766264,0.00030875,4]
[310290808,1704463887889,-1058.5073427,0.00030875,4]
[310290809,1704463887900,-937.04818772,0.00030875,4]
[310290810,1704463887912,-162.16116058,0.00030875,4]
[310290811,1704463887924,-331.99226453,0.00030875,2]
[310290812,1704463887938,-2545.93649865,0.00030876,4]
[310290813,1704463887952,-170.38213205,0.00030877,4]
[310290814,1704463887963,-151.0,0.00030877,7]
[310290815,1704463887975,-151.0,0.00030877,7]
[310290816,1704463887988,-151.0,0.00030877,7]
[310290817,1704463888000,-151.0,0.00030877,7]
[310290818,1704463888012,-151.0,0.00030877,7]
[310290819,1704463888023,-151.0,0.00030877,7]
[310290820,1704463888036,-151.0,0.00030877,7]
[310290821,1704463888048,-10000.0,0.00030877,7]
[310290822,1704463888060,-10000.0,0.00030877,7]
[310290823,1704463888071,-1556.858011,0.00030877,7]
[310290824,1704463888083,-4473.142131,0.00030877,7]
[310290825,1704463888094,-4473.142131,0.00030877,7]
[310290826,1704463888106,-185.208853,0.00030877,7]
[310290827,1704463888118,-185.208853,0.00030877,7]
[310290828,1704463888131,-759.511757,0.00030877,7]
[310290829,1704463888142,-759.511751,0.00030877,7]
[310290830,1704463888154,-670.734672,0.00030877,7]
[310290831,1704463888165,-670.734679,0.00030877,7]
[310290832,1704463888178,-151.0,0.00030877,7]
[310290833,1704463888189,-192.329905,0.00030877,7]
[310290834,1704463888201,-236.259597,0.00030877,7]
[310290835,1704463888214,-236.259593,0.00030877,7]
[310290836,1704463888225,-719.83383,0.00030877,7]
[310290837,1704463888238,-719.833824,0.00030877,7]
[310290838,1704463888250,-351.608158,0.00030877,7]
[310290839,1704463888262,-351.60815,0.00030877,7]
[310290840,1704463888274,-441.69152,0.00030877,7]
[310290841,1704463888288,-441.691511,0.00030877,7]
[310290842,1704463888300,-500.0,0.00030877,2]
[310290843,1704463888312,-489.2151215,0.00030877,2]
[310290844,1704463888324,-502.94802169,0.00030877,2]
[310290845,1704463888336,-502.95562275,0.00030877,2]
[310290846,1704463888348,-500.0,0.00030877,2]
[310290847,1704463888359,-500.0,0.00030877,2]
[310290848,1704463888371,-500.0,0.00030877,2]
[310290849,1704463888382,-285.64773116,0.00030877,2]
[310290850,1704463888394,-296.20951445,0.00030877,2]
[310290851,1704463888405,-500.0,0.00030877,2]
[310290852,1704463888416,-358.59366586,0.00030877,2]
[310290853,1704463888428,-500.0,0.00030877,2]
[310290854,1704463888439,-501.8671854,0.00030877,2]
[310290855,1704463888452,-333.38424472,0.00030877,2]
[310290856,1704463888464,-500.0,0.00030877,2]
[310290857,1704463888477,-500.0,0.00030877,2]
[310290858,1704463888488,-500.0,0.00030877,2]
[310290859,1704463888501,-508.8634837,0.00030877,2]
[310290860,1704463888512,-555.20526757,0.00030877,2]
[310290861,1704463888524,-503.15682305,0.00030877,2]
[310290862,1704463888546,-500.0,0.00030877,2]
[310290863,1704463888557,-500.0,0.00030877,2]
[310290864,1704463888569,-503.05471814,0.00030877,2]
[310290865,1704463888580,-506.33393554,0.00030877,2]
[310290866,1704463888592,-500.0,0.00030877,2]
[310290867,1704463888604,-501.80471895,0.00030877,2]
[310290868,1704463888618,-453.02922588,0.00030877,2]
[310290869,1704463888629,-500.0,0.00030877,2]
[310290870,1704463888640,-501.28797633,0.00030877,2]
[310290871,1704463888652,-513.64175765,0.00030877,2]
[310290872,1704463888665,-267.42398357,0.00030877,2]
[310290873,1704463888677,-501.82443011,0.00030877,2]
[310290874,1704463888689,-500.0,0.00030877,2]
[310290875,1704463888702,-501.53100154,0.00030877,2]
[310290876,1704463888713,-501.81171206,0.00030877,2]
[310290877,1704463888725,-500.0,0.00030877,2]
[310290878,1704463888736,-501.96188109,0.00030877,2]
[310290879,1704463888747,-413.19940919,0.00030877,2]
[310290880,1704463888759,-241.1150318,0.00030877,2]
[310290881,1704463888770,-455.35734406,0.00030877,2]
[310290882,1704463888782,-457.57044773,0.00030877,2]
[310290883,1704463888795,-500.0,0.00030877,2]
[310290884,1704463888806,-501.33746684,0.00030877,2]
[310290885,1704463888817,-503.73681961,0.00030877,2]
[310290886,1704463888829,-538.16324433,0.00030877,2]
[310290887,1704463888840,-500.0,0.00030877,2]
[310290888,1704463888851,-173.17,0.00030877,2]
[310290889,1704463888862,-552.55908713,0.00030877,2]
[310290890,1704463888873,-501.84994833,0.00030877,2]
[310290891,1704463888884,-500.0,0.00030877,2]
[310290892,1704463888896,-485.60667293,0.00030877,2]
[310290893,1704463888907,-611.78108269,0.00030877,2]
[310290894,1704463888919,-500.0,0.00030877,2]
[310290895,1704463888930,-500.0,0.00030877,2]
[310290896,1704463888941,-500.0,0.00030877,2]
[310290897,1704463888952,-500.0,0.00030877,2]
[310290898,1704463888964,-500.0,0.00030877,2]
[310290899,1704463888975,-500.0,0.00030877,2]
[310290900,1704463888986,-502.43642866,0.00030877,2]
[310290901,1704463888997,-509.77783406,0.00030877,2]
[310290902,1704463889008,-501.29264099,0.00030877,2]
[310290903,1704463889019,-221.82477252,0.00030877,2]
[310290904,1704463889031,-500.92885447,0.00030877,2]
[310290905,1704463889042,-500.0,0.00030877,2]
[310290906,1704463889054,-500.0,0.00030877,2]
[310290907,1704463889066,-500.51306059,0.00030877,2]
[310290908,1704463889077,-500.86629976,0.00030877,2]
[310290909,1704463889088,-501.30668045,0.00030877,2]
[310290910,1704463889099,-501.88159456,0.00030877,2]
[310290911,1704463889111,-362.12096705,0.00030877,2]
[310290912,1704463889122,-501.32658014,0.00030877,2]
[310290913,1704463889133,-500.0,0.00030877,2]
[310290914,1704463889144,-507.80091907,0.00030877,2]
[310290915,1704463889155,-500.0,0.00030877,2]
[310290916,1704463889166,-500.0,0.00030877,15]
[310290917,1704463889177,-153.62373301,0.00030877,2]
[310290918,1704463889188,-500.0,0.00030877,2]
[310290919,1704463889200,-500.0,0.00030877,2]
[310290920,1704463889211,-1000.0,0.00030877,2]
[310290921,1704463889222,-500.0,0.00030877,2]
[310290922,1704463889234,-500.0,0.00030877,2]
[310290923,1704463889245,-500.0,0.00030877,2]
[310290924,1704463889257,-500.0,0.00030877,2]
[310290925,1704463889268,-500.0,0.00030877,2]
[310290926,1704463889279,-501.7255518,0.00030877,2]
[310290927,1704463889291,-500.0,0.00030877,2]
[310290928,1704463889303,-500.0,0.00030877,2]
[310290929,1704463889315,-500.0,0.00030877,2]
[310290930,1704463889326,-500.0,0.00030877,2]
[310290931,1704463889337,-502.87857579,0.00030877,2]
[310290932,1704463889349,-480.92786736,0.00030877,2]
[310290933,1704463889360,-500.0,0.00030877,2]
[310290934,1704463889372,-173.44823541,0.00030877,2]
[310290935,1704463889383,-524.86033248,0.00030877,2]
[310290936,1704463889775,-273.0541287,0.00030877,2]
[310290937,1704463889798,-500.0,0.00030877,2]
[310290938,1704463889807,-500.0,0.00030877,2]
[310290939,1704463889817,-500.0,0.00030877,2]
[310290940,1704463889827,-500.0,0.00030877,2]
[310290941,1704463889837,-313.34408667,0.00030877,2]
[310290942,1704463889846,-501.85605925,0.00030877,2]
[310290943,1704463889856,-500.0,0.00030877,2]
[310290944,1704463889865,-515.39933863,0.00030877,2]
[310290945,1704463889874,-500.0,0.00030877,2]
[310290946,1704463889883,-500.0,0.00030877,2]
[310290947,1704463889892,-583.67388046,0.00030877,2]
[310290948,1704463889902,-500.0,0.00030877,2]
[310290949,1704463889911,-500.79159215,0.00030877,2]
[310290950,1704463889920,-500.0,0.00030877,2]
[310290951,1704463889930,-500.0,0.00030877,2]
[310290952,1704463889939,-1444.79,0.00030877,2]
[310290953,1704463889949,-500.0,0.00030877,2]
[310290954,1704463889959,-500.0,0.00030877,2]
[310290955,1704463889970,-500.0,0.00030877,2]